fUSD/lending_fUSD_20241030
["ID","MTS","AMOUNT","RATE_DAILY","PERIOD"]
[341038821,1730299889550,-810.09,0.0003315,5]
[341038822,1730299889559,-500.0,0.0003315,5]
[341038823,1730299889569,-555.76,0.0003315,5]
[341038824,1730299889578,-787.04,0.0003315,5]
[341038825,1730299889587,-500.0,0.0003315,5]
[341038826,1730299889596,-739.87,0.0003315,5]
[341038827,1730299889605,-500.0,0.0003315,5]
[341038828,1730299889614,-500.0,0.0003315,5]
[341038829,1730299889624,-500.0,0.0003315,5]
[341038830,1730299889634,-1711.46,0.0003315,5]
[341038831,1730299889642,-500.0,0.0003315,5]
[341038832,1730299889652,-530.14707402,0.0003315,5]
[341038833,1730299889661,-500.0,0.0003315,5]
[341038834,1730299889670,-763.03,0.0003315,5]
[341038835,1730299889680,-500.0,0.0003315,5]
[341038836,1730299889689,-500.0,0.0003315,5]
[341038837,1730299889698,-462.71651959,0.0003315,5]
[341038838,1730299889707,-1990.98,0.0003315,5]
[341038839,1730299889717,-500.0,0.0003315,5]
[341038840,1730299889727,-500.0,0.0003315,5]
[341038841,1730299889736,-619.44,0.0003315,5]
[341038842,1730299889746,-1191.88,0.0003315,5]
[341038843,1730299889756,-500.0,0.0003315,5]
[341038844,1730299889766,-500.0,0.0003315,5]
[341038845,1730299889776,-500.0,0.0003315,5]
[341038846,1730299889785,-500.0,0.0003315,5]
[341038847,1730299889793,-539.45,0.0003315,5]
[341038848,1730299889803,-500.0,0.0003315,5]
[341038849,1730299889814,-500.0,0.0003315,5]
[341038850,1730299889824,-975.25,0.0003315,5]
[341038851,1730299889833,-500.0,0.0003315,5]
[341038852,1730299889842,-1051.76,0.0003315,5]
[341038853,1730299889851,-1354.01,0.0003315,5]
[341038854,1730299889861,-1468.71,0.0003315,5]
[341038855,1730299889872,-3673.0,0.0003315,5]
[341038856,1730299889883,-500.0,0.0003315,5]
[341038857,1730299889893,-906.56,0.0003315,30]
[341038858,1730299889904,-500.0,0.0003315,5]
[341038859,1730299889915,-500.0,0.0003315,5]
[341038860,1730299889926,-500.0,0.0003315,5]
[341038861,1730299889936,-500.0,0.0003315,5]
[341038862,1730299889946,-500.0,0.0003315,5]
[341038863,1730299889956,-500.0,0.0003315,5]
[341038864,1730299889966,-500.0,0.0003315,5]
[341038865,1730299889976,-830.86,0.0003315,5]
[341038866,1730299889987,-500.0,0.0003315,5]
[341038867,1730299889996,-1086.86,0.0003315,5]
[341038868,1730299890007,-526.76290879,0.0003315,5]
[341038869,1730299890016,-241.472908,0.0003315,7]
[341038870,1730299890026,-241.472908,0.0003315,7]
[341038871,1730299890035,-241.472908,0.0003315,7]
[341038872,1730299890044,-430.49224843,0.0003315,5]
[341038873,1730299890053,-646.72,0.0003315,5]
[341038874,1730299890062,-500.0,0.0003315,5]
[341038875,1730299890071,-2002.55,0.0003315,5]
[341038876,1730299890081,-500.0,0.0003315,5]
[341038877,1730299890090,-241.472908,0.0003315,7]
[341038878,1730299890101,-241.472908,0.0003315,7]
[341038879,1730299890112,-241.472908,0.0003315,7]
[341038880,1730299890121,-500.0,0.0003315,5]
[341038881,1730299890131,-500.0,0.0003315,5]
[341038882,1730299890140,-500.0,0.0003315,5]
[341038883,1730299890149,-500.0,0.0003315,5]
[341038884,1730299890158,-500.0,0.0003315,5]
[341038885,1730299890168,-500.0,0.0003315,5]
[341038886,1730299890177,-736.0,0.0003315,5]
[341038887,1730299890186,-545.73,0.0003315,5]
[341038888,1730299890196,-500.0,0.0003315,5]
[341038889,1730299890205,-617.04,0.0003315,5]
[341038890,1730299890214,-645.56,0.0003315,5]
[341038891,1730299890224,-634.85014954,0.0003315,5]
[341038892,1730299890234,-652.51,0.0003315,5]
[341038893,1730299890244,-500.0,0.0003315,5]
[341038894,1730299890259,-500.0,0.0003315,5]
[341038895,1730299890268,-500.0,0.0003315,5]
[341038896,1730299890277,-636.15,0.0003315,5]
[341038897,1730299890286,-542.47,0.0003315,5]
[341038898,1730299890295,-500.0,0.0003315,5]
[341038899,1730299890305,-726.06,0.0003315,5]
[341038900,1730299890315,-500.0,0.0003315,5]
[341038901,1730299890324,-500.0,0.0003315,5]
[341038902,1730299890334,-901.66,0.0003315,5]
[341038903,1730299890343,-500.0,0.0003315,5]
[341038904,1730299890353,-500.0,0.0003315,5]
[341038905,1730299890363,-500.0,0.0003315,5]
[341038906,1730299890372,-500.0,0.0003315,5]
[341038907,1730299890380,-500.0,0.0003315,5]
[341038908,1730299890392,-500.0,0.0003315,5]
[341038909,1730299890401,-1220.63,0.0003315,5]
[341038910,1730299890411,-500.0,0.0003315,5]
[341038911,1730299890421,-820.05,0.0003315,5]
[341038912,1730299890431,-644.94,0.0003315,5]
[341038913,1730299890441,-500.0,0.0003315,5]
[341038914,1730299890450,-500.0,0.0003315,5]
[341038915,1730299890459,-637.3,0.0003315,5]
[341038916,1730299890469,-500.0,0.0003315,5]
[341038917,1730299890479,-5935.2,0.0003315,5]
[341038918,1730299890489,-731.89,0.0003315,5]
[341038919,1730299890498,-571.04,0.0003315,5]
[341038920,1730299890509,-954.6,0.0003315,5]
[341038921,1730299890519,-500.0,0.0003315,5]
[341038922,1730299890528,-500.0,0.0003315,5]
[341038923,1730299890538,-500.0,0.0003315,5]
[341038924,1730299890547,-651.63,0.0003315,5]
[341038925,1730299890557,-500.0,0.0003315,5]
[341038926,1730299890567,-626.15,0.0003315,5]
[341038927,1730299890578,-519.21,0.0003315,5]
[341038928,1730299890588,-675.01,0.0003315,5]
[341038929,1730299890598,-500.0,0.0003315,5]
[341038930,1730299890608,-344.01653831,0.0003315,5]
[341038931,1730299890618,-500.0,0.0003315,5]
[341038932,1730299890628,-500.0,0.0003315,5]
[341038933,1730299890637,-500.0,0.0003315,5]
[341038934,1730299890647,-263.0,0.00033172,5]
[341038935,1730299890656,-216.95819215,0.00033173,5]
[341038936,1730299890666,-301.35400986,0.000333,2]
[341038937,1730299890675,-2003.08347009,0.000333,15]
[341038938,1730299890683,-1007.49,0.00033423,5]
[341038939,1730299890693,-500.0,0.00033423,5]
[341038940,1730299890702,-199.1996,0.00033424,5]
[341038941,1730299890712,-542.0,0.00033424,5]
[341038942,1730299890721,-500.5477,0.00033424,5]
[341038943,1730299890730,-150.0,0.00033424,5]
[341038944,1730299890739,-239.87756445,0.00033424,5]
[341038945,1730299890748,-500.0,0.00033424,5]
[341038946,1730299890760,-500.0,0.00033424,5]
[341038947,1730299890769,-505.03609552,0.00033424,5]
[341038948,1730299890779,-500.0,0.00033424,5]
[341038949,1730299890789,-500.0,0.00033424,5]
[341038950,1730299890798,-500.0,0.00033424,5]
[341038951,1730299890808,-500.0,0.00033424,5]
[341038952,1730299890818,-500.0,0.00033424,5]
[341038953,1730299890828,-500.0,0.00033424,5]
[341038954,1730299890838,-500.0,0.00033424,5]
[341038955,1730299890847,-500.0,0.00033424,5]
[341038956,1730299890857,-279.44683331,0.00033424,5]
[341038957,1730299890867,-500.0,0.00033424,5]
[341038958,1730299890879,-500.0,0.00033424,5]
[341038959,1730299890889,-500.0,0.00033424,5]
[341038960,1730299890898,-500.0,0.00033424,5]
[341038961,1730299890908,-500.0,0.00033424,5]
[341038962,1730299890919,-500.0,0.00033424,5]
[341038963,1730299890928,-500.0,0.00033424,5]
[341038964,1730299890937,-500.0,0.00033424,5]
[341038965,1730299890950,-500.0,0.00033424,5]
[341038966,1730299890961,-500.0,0.00033424,5]
[341038967,1730299890970,-819.18,0.00033424,5]
[341038968,1730299890980,-901.94,0.00033424,5]
[341038969,1730299890989,-872.05,0.00033424,5]
[341038970,1730299890999,-500.0,0.00033424,5]
[341038971,1730299891011,-500.0,0.00033424,5]
[341038972,1730299891021,-500.0,0.00033424,7]
[341038973,1730299891031,-500.0,0.00033424,5]
[341038974,1730299891040,-200.4861491,0.00033424,5]
[341038975,1730299891050,-583.57,0.00033424,5]
[341038976,1730299891059,-500.0,0.00033424,5]
[341038977,1730299891068,-500.0,0.00033424,5]
[341038978,1730299891078,-500.0,0.00033424,5]
[341038979,1730299891088,-287.47108918,0.00033424,5]
[341038980,1730299891097,-500.0,0.00033424,5]
[341038981,1730299891107,-1319.61,0.00033424,5]
[341038982,1730299891117,-500.0,0.00033424,5]
[341038983,1730299891126,-730.99,0.00033424,5]
[341038984,1730299891244,-500.0,0.00033424,5]
[341038985,1730299891254,-1251.63,0.00033424,5]
[341038986,1730299891267,-500.0,0.00033424,5]
[341038987,1730299891276,-561.15,0.00033424,5]
[341038988,1730299891286,-526.50926795,0.00033424,5]
[341038989,1730299891295,-500.0,0.00033424,5]
[341038990,1730299891305,-500.0,0.00033424,5]
[341038991,1730299891315,-500.0,0.00033424,5]
[341038992,1730299891325,-700.33,0.00033424,5]
[341038993,1730299891335,-500.0,0.00033424,5]
[341038994,1730299891344,-500.0,0.00033424,5]
[341038995,1730299891354,-640.39,0.00033424,5]
[341038996,1730299891364,-520.52,0.00033424,5]
[341038997,1730299891374,-500.0,0.00033424,5]
[341038998,1730299891383,-500.0,0.00033424,5]
[341038999,1730299891393,-970.04,0.00033424,5]
[341039000,1730299891402,-645.46857654,0.00033424,5]
[341039001,1730299891414,-500.0,0.00033424,5]
[341039002,1730299891423,-500.0,0.00033424,5]
[341039003,1730299891433,-500.0,0.00033424,5]
[341039004,1730299891442,-556.21,0.00033424,5]
[341039005,1730299891451,-500.0,0.00033424,5]
[341039006,1730299891461,-500.0,0.00033424,5]
[341039007,1730299891471,-967.06,0.00033424,5]
[341039008,1730299891481,-500.0,0.00033424,5]
[341039009,1730299891491,-500.0,0.00033424,5]
[341039010,1730299891500,-500.0,0.00033424,7]
[341039011,1730299891512,-500.0,0.00033424,5]
[341039012,1730299891522,-731.56,0.00033424,5]
[341039013,1730299891532,-506.82518499,0.00033424,5]
[341039014,1730299891541,-670.65,0.00033424,5]
[341039015,1730299891551,-1276.1,0.00033424,5]
[341039016,1730299891560,-1820.04,0.00033424,5]
[341039017,1730299891570,-500.0,0.00033424,5]
[341039018,1730299891579,-500.0,0.00033424,5]
[341039019,1730299891589,-812.27,0.00033424,5]
[341039020,1730299891598,-834.4,0.00033424,5]
[341039021,1730299891608,-500.0,0.00033424,5]
[341039022,1730299891617,-500.0,0.00033424,5]
[341039023,1730299891627,-665.61,0.00033424,5]
[341039024,1730299891636,-500.0,0.00033424,5]
[341039025,1730299891645,-500.0,0.00033424,5]
[341039026,1730299891655,-500.0,0.00033424,5]
[341039027,1730299891664,-500.0,0.00033424,5]
[341039028,1730299891674,-500.0,0.00033424,5]
[341039029,1730299891683,-783.96,0.00033424,2]
[341039030,1730299891692,-500.0,0.00033424,5]
[341039031,1730299891701,-500.0,0.00033424,5]
[341039032,1730299891710,-500.0,0.00033424,5]
[341039033,1730299891719,-500.0,0.00033424,5]
[341039034,1730299891728,-500.0,0.00033424,5]
[341039035,1730299891737,-500.0,0.00033424,5]
[341039036,1730299891747,-2000.0,0.00033424,5]
[341039037,1730299891757,-500.0,0.00033424,5]
[341039038,1730299891766,-890.32,0.00033424,5]
[341039039,1730299891778,-591.78,0.00033424,5]
[341039040,1730299891788,-901.09,0.00033424,5]
[341039041,1730299891797,-500.0,0.00033424,5]
[341039042,1730299891806,-500.0,0.00033424,5]
[341039043,1730299891815,-500.0,0.00033424,5]
[341039044,1730299891824,-500.0,0.00033424,5]
[341039045,1730299891833,-1187.01,0.00033424,5]
[341039046,1730299891842,-282.98673081,0.00033424,5]
[341039047,1730299891851,-500.0,0.00033424,5]
[341039048,1730299891860,-500.0,0.00033424,5]
[341039049,1730299891869,-3247.79,0.00033424,5]
[341039050,1730299891880,-500.0,0.00033424,5]
[341039051,1730299891890,-500.0,0.00033424,5]
[341039052,1730299891899,-500.0,0.00033424,5]
[341039053,1730299891908,-500.0,0.00033424,5]
[341039054,1730299891918,-3761.91,0.00033424,5]
[341039055,1730299891927,-634.35270913,0.00033424,5]
[341039056,1730299891936,-1089.14,0.00033424,5]
[341039057,1730299891946,-500.0,0.00033424,5]
[341039058,1730299891957,-524.26,0.00033424,5]
[341039059,1730299891966,-500.0,0.00033424,5]
[341039060,1730299891975,-500.0,0.00033424,5]
[341039061,1730299891985,-500.0,0.00033424,5]
[341039062,1730299891994,-500.0,0.00033424,5]
[341039063,1730299892003,-500.0,0.00033424,5]
[341039064,1730299892014,-604.16,0.00033424,5]
[341039065,1730299892023,-500.0,0.00033424,5]
[341039066,1730299892031,-500.0,0.00033424,5]
[341039067,1730299892041,-595.74,0.00033424,5]
[341039068,1730299892050,-562.07,0.00033424,5]
[341039069,1730299892059,-500.0,0.00033424,5]
[341039070,1730299892068,-500.0,0.00033424,5]
[341039071,1730299892078,-500.0,0.00033424,5]
[341039072,1730299892087,-500.0,0.00033424,5]
[341039073,1730299892096,-500.0,0.00033424,5]
[341039074,1730299892106,-500.0,0.00033424,5]
[341039075,1730299892115,-500.0,0.00033424,5]
[341039076,1730299892124,-500.0,0.00033424,5]
[341039077,1730299892133,-500.0,0.00033424,5]
[341039078,1730299892142,-1108.52,0.00033424,5]
[341039079,1730299892152,-500.0,0.00033424,5]
[341039080,1730299892161,-500.0,0.00033424,5]
[341039081,1730299892170,-899.38,0.00033424,5]
[341039082,1730299892179,-916.14,0.00033424,5]
[341039083,1730299892190,-500.0,0.00033424,5]
[341039084,1730299892199,-500.0,0.00033424,5]
[341039085,1730299892208,-500.0,0.00033424,5]
[341039086,1730299892217,-500.0,0.00033424,5]
[341039087,1730299892225,-1147.86,0.00033424,5]
[341039088,1730299892235,-617.7,0.00033424,5]
[341039089,1730299892244,-500.0,0.00033424,5]
[341039090,1730299892253,-1088.55,0.00033424,5]
[341039091,1730299892264,-500.0,0.00033424,5]
[341039092,1730299892274,-500.0,0.00033424,5]
[341039093,1730299892283,-883.27,0.00033424,5]
[341039094,1730299892293,-579.65,0.00033424,5]
[341039095,1730299892303,-500.0,0.00033424,5]
[341039096,1730299892312,-500.0,0.00033424,5]
[341039097,1730299892322,-500.0,0.00033424,5]
[341039098,1730299892331,-6627.6,0.00033424,5]
[341039099,1730299892340,-1281.54,0.00033424,5]
[341039100,1730299892349,-670.52,0.00033424,5]
[341039101,1730299892359,-1308.28,0.00033424,5]
[341039102,1730299892368,-500.0,0.00033424,5]
[341039103,1730299892379,-500.0,0.00033424,5]
[341039104,1730299892388,-178.00678447,0.00033424,5]
[341039105,1730299892398,-594.96,0.00033424,5]
[341039106,1730299892410,-500.0,0.00033424,5]
[341039107,1730299892420,-1527.21,0.00033424,5]
[341039108,1730299892429,-1968.52,0.00033424,5]
[341039109,1730299892441,-500.0,0.00033424,5]
[341039110,1730299892450,-1235.78,0.00033424,5]
[341039111,1730299892460,-2222.72,0.00033424,5]
[341039112,1730299892472,-500.0,0.00033424,5]
[341039113,1730299892482,-494.98388235,0.00033424,5]
[341039114,1730299892491,-200.0,0.00033424,5]
[341039115,1730299892501,-500.0,0.00033424,5]
[341039116,1730299892511,-1647.28,0.00033424,5]
[341039117,1730299892520,-3841.76,0.00033424,5]
[341039118,1730299892529,-509.11,0.00033424,5]
[341039119,1730299892538,-993.65,0.00033424,5]
[341039120,1730299892550,-500.0,0.00033424,5]
[341039121,1730299892561,-500.0,0.00033424,5]
[341039122,1730299892572,-862.1,0.00033424,5]
[341039123,1730299892583,-500.0,0.00033424,5]
[341039124,1730299892593,-500.0,0.00033424,5]
[341039125,1730299892602,-500.0,0.00033424,5]
[341039126,1730299892611,-500.0,0.00033424,5]
[341039127,1730299892622,-969.25,0.00033424,5]
[341039128,1730299892632,-500.0,0.00033424,5]
[341039129,1730299892642,-500.0,0.00033424,5]
[341039130,1730299892652,-500.0,0.00033424,5]
[341039131,1730299892662,-500.0,0.00033424,5]
[341039132,1730299892672,-500.0,0.00033424,5]
[341039133,1730299892683,-500.0,0.00033424,5]
[341039134,1730299892693,-500.0,0.00033424,5]
[341039135,1730299892703,-625.17,0.00033424,5]
[341039136,1730299892712,-500.0,0.00033424,5]
[341039137,1730299892721,-1018.56,0.00033424,5]
[341039138,1730299892730,-500.0,0.00033424,5]
[341039139,1730299892740,-1112.57,0.00033424,5]
[341039140,1730299892749,-691.4,0.00033424,5]
[341039141,1730299892759,-500.0,0.00033424,5]
[341039142,1730299892770,-500.0,0.00033424,5]
[341039143,1730299892779,-1388.66,0.00033424,5]
[341039144,1730299892789,-500.0,0.00033424,5]
[341039145,1730299892798,-567.01805955,0.00033424,5]
[341039146,1730299892808,-151.0,0.00033424,7]
[341039147,1730299892817,-151.0,0.00033424,7]
[341039148,1730299892826,-151.0,0.00033424,7]
[341039149,1730299892835,-2096.63,0.00033424,5]
[341039150,1730299892845,-500.0,0.00033424,5]
[341039151,1730299892854,-500.0,0.00033424,5]
[341039152,1730299892866,-500.0,0.00033424,5]
[341039153,1730299892878,-500.0,0.00033424,5]
[341039154,1730299892887,-500.0,0.00033424,5]
[341039155,1730299892900,-428.51711188,0.00033424,5]
[341039156,1730299892910,-500.0,0.00033424,5]
[341039157,1730299892923,-810.09,0.00033424,5]
[341039158,1730299892933,-787.04,0.00033424,5]
[341039159,1730299892943,-739.87,0.00033424,5]
[341039160,1730299892954,-628.44020082,0.00033424,5]
[341039161,1730299892965,-500.0,0.00033424,5]
[341039162,1730299892975,-1711.46,0.00033424,5]
[341039163,1730299892984,-472.73542071,0.00033424,5]
[341039164,1730299892994,-500.0,0.00033424,5]
[341039165,1730299893005,-763.03,0.00033424,5]
[341039166,1730299893014,-500.0,0.00033424,5]
[341039167,1730299893024,-1990.98,0.00033424,5]
[341039168,1730299893033,-500.0,0.00033424,5]
[341039169,1730299893042,-500.0,0.00033424,5]
[341039170,1730299893052,-619.44,0.00033424,5]
[341039171,1730299893062,-1191.88,0.00033424,5]
[341039172,1730299893071,-500.0,0.00033424,5]
[341039173,1730299893080,-500.0,0.00033424,5]
[341039174,1730299893090,-500.0,0.00033424,5]
[341039175,1730299893099,-539.45,0.00033424,5]
[341039176,1730299893211,-500.0,0.00033424,5]
[341039177,1730299893228,-500.0,0.00033424,5]
[341039178,1730299893238,-975.25,0.00033424,5]
[341039179,1730299893247,-500.0,0.00033424,5]
[341039180,1730299893259,-1051.76,0.00033424,5]
[341039181,1730299893269,-1354.01,0.00033424,5]
[341039182,1730299893278,-1468.71,0.00033424,5]
[341039183,1730299893288,-3673.0,0.00033424,5]
[341039184,1730299893297,-500.0,0.00033424,5]
[341039185,1730299893307,-906.56,0.00033424,30]
[341039186,1730299893317,-500.0,0.00033424,5]
[341039187,1730299893326,-323.96962847,0.00033424,5]
[341039188,1730299893337,-500.0,0.00033424,5]
[341039189,1730299893346,-553.04199414,0.00033424,5]
[341039190,1730299893356,-500.0,0.00033424,5]
[341039191,1730299893366,-830.86,0.00033424,5]
[341039192,1730299893375,-1086.86,0.00033424,5]
[341039193,1730299893385,-500.0,0.00033424,5]
[341039194,1730299893395,-241.472908,0.00033424,7]
[341039195,1730299893404,-241.472908,0.00033424,7]
[341039196,1730299893414,-241.472908,0.00033424,7]
[341039197,1730299893423,-646.72,0.00033424,5]
[341039198,1730299893433,-162.79407877,0.00033424,5]
[341039199,1730299893442,-2002.55,0.00033424,5]
[341039200,1730299893451,-241.472908,0.00033424,7]
[341039201,1730299893461,-241.472908,0.00033424,7]
[341039202,1730299893471,-241.472898,0.00033424,7]
[341039203,1730299893480,-539.63132191,0.00033424,5]
[341039204,1730299893490,-500.0,0.00033424,5]
[341039205,1730299893499,-641.70737576,0.00033424,5]
[341039206,1730299893512,-500.0,0.00033424,5]
[341039207,1730299893521,-500.0,0.00033424,5]
[341039208,1730299893532,-736.0,0.00033424,5]
[341039209,1730299893542,-545.73,0.00033424,5]
[341039210,1730299893551,-500.0,0.00033424,5]
[341039211,1730299893561,-617.04,0.00033424,5]
[341039212,1730299893570,-645.56,0.00033424,5]
[341039213,1730299893579,-652.51,0.00033424,5]
[341039214,1730299893589,-177.48590739,0.00033424,5]
[341039215,1730299893598,-500.0,0.00033424,5]
[341039216,1730299893608,-500.0,0.00033424,5]
[341039217,1730299893617,-636.15,0.00033424,5]
[341039218,1730299893627,-542.47,0.00033424,5]
[341039219,1730299893636,-500.0,0.00033424,5]
[341039220,1730299893646,-726.06,0.00033424,5]
[341039221,1730299893655,-500.0,0.00033424,5]
[341039222,1730299893664,-500.0,0.00033424,5]
[341039223,1730299893673,-901.66,0.00033424,5]
[341039224,1730299893683,-500.0,0.00033424,5]
[341039225,1730299893691,-500.0,0.00033424,5]
[341039226,1730299893701,-500.0,0.00033424,5]
[341039227,1730299893710,-500.0,0.00033424,5]
[341039228,1730299893720,-500.0,0.00033424,5]
[341039229,1730299893729,-500.0,0.00033424,5]
[341039230,1730299893738,-1220.63,0.00033424,5]
[341039231,1730299893747,-500.0,0.00033424,5]
[341039232,1730299893759,-820.05,0.00033424,5]
[341039233,1730299893769,-644.94,0.00033424,5]
[341039234,1730299893779,-500.0,0.00033424,5]
[341039235,1730299893788,-500.0,0.00033424,5]
[341039236,1730299893797,-637.3,0.00033424,5]
[341039237,1730299893807,-500.0,0.00033424,5]
[341039238,1730299893816,-5935.2,0.00033424,5]
[341039239,1730299893825,-731.89,0.00033424,5]
[341039240,1730299893835,-571.04,0.00033424,5]
[341039241,1730299893844,-954.6,0.00033424,5]
[341039242,1730299893854,-500.0,0.00033424,5]
[341039243,1730299893863,-500.0,0.00033424,5]
[341039244,1730299893874,-500.0,0.00033424,5]
[341039245,1730299893884,-651.63,0.00033424,5]
[341039246,1730299893893,-500.0,0.00033424,5]
[341039247,1730299893902,-626.15,0.00033424,5]
[341039248,1730299893912,-519.21,0.00033424,5]
[341039249,1730299893922,-675.01,0.00033424,5]
[341039250,1730299893931,-500.0,0.00033424,5]
[341039251,1730299893941,-500.0,0.00033424,5]
[341039252,1730299893951,-500.0,0.00033424,5]
[341039253,1730299893961,-500.0,0.00033424,5]
[341039254,1730299893970,-586.0,0.00033425,120]
[341039255,1730299893980,-301.35400986,0.000335,2]
[341039256,1730299893989,-2003.08347009,0.00033567,15]
[341039257,1730299893999,-406.514,0.00033593,2]
[341039258,1730299894010,-1275.176,0.00033593,2]
[341039259,1730299894019,-896.83,0.00033593,2]
[341039260,1730299894029,-500.0,0.00033616,60]
[341039261,1730299894038,-500.0,0.00033616,60]
[341039262,1730299894048,-500.0,0.00033616,60]
[341039263,1730299894057,-1007.49,0.00033697,5]
[341039264,1730299894066,-500.0,0.00033697,5]
[341039265,1730299894088,-542.0,0.00033698,5]
[341039266,1730299894104,-150.0,0.00033698,5]
[341039267,1730299894123,-500.0,0.00033698,5]
[341039268,1730299894143,-557.0,0.00033698,5]
[341039269,1730299894161,-500.0,0.00033698,5]
[341039270,1730299894180,-500.0,0.00033698,5]
[341039271,1730299894196,-182.24907575,0.00033698,5]
[341039272,1730299894214,-500.0,0.00033698,5]
[341039273,1730299894233,-500.0,0.00033698,5]
[341039274,1730299894253,-500.0,0.00033698,5]
[341039275,1730299894268,-500.0,0.00033698,5]
[341039276,1730299894288,-500.0,0.00033698,5]
[341039277,1730299894304,-500.0,0.00033698,5]
[341039278,1730299894320,-500.0,0.00033698,5]
[341039279,1730299894335,-500.0,0.00033698,5]
[341039280,1730299894349,-500.0,0.00033698,5]
[341039281,1730299894362,-500.0,0.00033698,5]
[341039282,1730299894377,-532.52769259,0.00033698,5]
[341039283,1730299894391,-500.0,0.00033698,5]
[341039284,1730299894405,-500.0,0.00033698,5]
[341039285,1730299894420,-320.09590634,0.00033698,5]
[341039286,1730299894434,-500.0,0.00033698,5]
[341039287,1730299894447,-819.18,0.00033698,5]
[341039288,1730299894462,-901.94,0.00033698,5]
[341039289,1730299894477,-872.05,0.00033698,5]
[341039290,1730299894491,-500.0,0.00033698,5]
[341039291,1730299894508,-500.0,0.00033698,5]
[341039292,1730299894522,-500.0,0.00033698,7]
[341039293,1730299894536,-500.0,0.00033698,5]
[341039294,1730299894549,-583.57,0.00033698,5]
[341039295,1730299894564,-500.0,0.00033698,5]
[341039296,1730299894579,-500.0,0.00033698,5]
[341039297,1730299894594,-500.0,0.00033698,5]
[341039298,1730299894608,-500.0,0.00033698,5]
[341039299,1730299894624,-1319.61,0.00033698,5]
[341039300,1730299894638,-500.0,0.00033698,5]
[341039301,1730299894653,-730.99,0.00033698,5]
[341039302,1730299894668,-500.0,0.00033698,5]
[341039303,1730299894684,-1251.63,0.00033698,5]
[341039304,1730299894694,-500.0,0.00033698,5]
[341039305,1730299894703,-561.15,0.00033698,5]
[341039306,1730299894712,-500.0,0.00033698,5]
[341039307,1730299894721,-500.0,0.00033698,5]
[341039308,1730299894730,-500.0,0.00033698,5]
[341039309,1730299894739,-700.33,0.00033698,5]
[341039310,1730299894749,-500.0,0.00033698,5]
[341039311,1730299894762,-500.0,0.00033698,5]
[341039312,1730299894772,-640.39,0.00033698,5]
[341039313,1730299894781,-520.52,0.00033698,5]
[341039314,1730299894790,-500.0,0.00033698,5]
[341039315,1730299894799,-500.0,0.00033698,5]
[341039316,1730299894808,-970.04,0.00033698,5]
[341039317,1730299894818,-393.52864995,0.00033698,5]
[341039318,1730299894827,-500.0,0.00033698,5]
[341039319,1730299894836,-539.67482594,0.00033698,5]
[341039320,1730299894845,-556.21,0.00033698,5]